fUSD/lending_fUSD_20250124
["ID","MTS","AMOUNT","RATE_DAILY","PERIOD"]
[350233484,1737723035349,-500.0,0.0001847,2]
[350233485,1737723035359,-500.0,0.0001847,2]
[350233486,1737723035369,-500.0,0.0001847,2]
[350233487,1737723035379,-500.0,0.0001847,2]
[350233488,1737723035388,-528.09,0.0001847,2]
[350233489,1737723035398,-500.0,0.0001847,2]
[350233490,1737723035409,-500.0,0.0001847,2]
[350233491,1737723035419,-500.0,0.0001847,2]
[350233492,1737723035429,-500.0,0.0001847,2]
[350233493,1737723035438,-500.0,0.0001847,2]
[350233494,1737723035448,-500.0,0.0001847,2]
[350233495,1737723035458,-500.0,0.0001847,2]
[350233496,1737723035468,-500.0,0.0001847,2]
[350233497,1737723035478,-500.0,0.0001847,2]
[350233498,1737723035487,-540.34,0.0001847,2]
[350233499,1737723035497,-752.16,0.0001847,2]
[350233500,1737723035507,-507.76843948,0.0001847,2]
[350233501,1737723035517,-522.32,0.0001847,2]
[350233502,1737723035526,-500.0,0.0001847,2]
[350233503,1737723035536,-500.0,0.0001847,2]
[350233504,1737723035545,-500.0,0.0001847,2]
[350233505,1737723035556,-500.0,0.0001847,2]
[350233506,1737723035566,-500.0,0.0001847,2]
[350233507,1737723035576,-500.0,0.0001847,2]
[350233508,1737723035585,-500.0,0.0001847,2]
[350233509,1737723035595,-500.0,0.0001847,2]
[350233510,1737723035604,-500.0,0.0001847,2]
[350233511,1737723035614,-500.0,0.0001847,2]
[350233512,1737723035624,-678.59,0.0001847,2]
[350233513,1737723035633,-500.0,0.0001847,2]
[350233514,1737723035643,-500.0,0.0001847,2]
[350233515,1737723035652,-337.30622835,0.0001847,2]
[350233516,1737723035664,-702.8,0.0001847,2]
[350233517,1737723035673,-500.0,0.0001847,2]
[350233518,1737723035683,-967.5,0.0001847,2]
[350233519,1737723035693,-500.0,0.0001847,2]
[350233520,1737723035704,-580.01,0.0001847,2]
[350233521,1737723035716,-205.53101687,0.0001847,2]
[350233522,1737723035726,-114713.29992192,0.0001847,2]
[350233523,1737723035736,-519.11401327,0.00018471,2]
[350233524,1737723035747,-514.42645228,0.00018471,2]
[350233525,1737723035757,-500.0,0.00018471,2]
[350233526,1737723035767,-574.37718809,0.00018471,2]
[350233527,1737723035776,-500.0,0.00018471,2]
[350233528,1737723035786,-500.0,0.00018471,2]
[350233529,1737723035796,-563.31,0.00018471,2]
[350233530,1737723035805,-500.0,0.00018471,2]
[350233531,1737723035815,-500.0,0.00018471,2]
[350233532,1737723035824,-834.62,0.00018471,2]
[350233533,1737723035834,-762.04,0.00018471,2]
[350233534,1737723035843,-525.04,0.00018471,2]
[350233535,1737723035853,-503.86568408,0.00018471,2]
[350233536,1737723035863,-500.0,0.00018471,2]
[350233537,1737723035873,-500.0,0.00018471,2]
[350233538,1737723035883,-500.0,0.00018471,2]
[350233539,1737723035894,-500.0,0.00018471,2]
[350233540,1737723035904,-500.0,0.00018471,2]
[350233541,1737723035913,-847.58,0.00018471,2]
[350233542,1737723035922,-722.85,0.00018471,2]
[350233543,1737723035933,-500.0,0.00018471,2]
[350233544,1737723035942,-500.0,0.00018471,2]
[350233545,1737723035952,-500.0,0.00018471,2]
[350233546,1737723035961,-500.0,0.00018471,2]
[350233547,1737723035971,-939.56,0.00018471,2]
[350233548,1737723035981,-500.0,0.00018471,2]
[350233549,1737723035990,-564.14,0.00018471,2]
[350233550,1737723036000,-500.0,0.00018471,2]
[350233551,1737723036009,-500.0,0.00018471,2]
[350233552,1737723036019,-500.0,0.00018471,2]
[350233553,1737723036029,-500.0,0.00018471,2]
[350233554,1737723036039,-1027.86,0.00018471,2]
[350233555,1737723036048,-500.0,0.00018471,2]
[350233556,1737723036058,-655.78,0.00018471,2]
[350233557,1737723036067,-500.0,0.00018471,2]
[350233558,1737723036078,-1010.3,0.00018471,2]
[350233559,1737723036088,-284.66221017,0.00018471,2]
[350233560,1737723036098,-500.0,0.00018471,2]
[350233561,1737723036107,-1211.04,0.00018471,2]
[350233562,1737723036117,-500.0,0.00018471,2]
[350233563,1737723036127,-525.39,0.00018471,2]
[350233564,1737723036136,-848.51,0.00018471,2]
[350233565,1737723036146,-500.0,0.00018471,2]
[350233566,1737723036157,-500.0,0.00018471,2]
[350233567,1737723036167,-500.0,0.00018471,2]
[350233568,1737723036176,-500.0,0.00018471,2]
[350233569,1737723036186,-573.37791864,0.00018471,2]
[350233570,1737723036196,-500.0,0.00018471,2]
[350233571,1737723036205,-767.97,0.00018471,2]
[350233572,1737723036216,-500.0,0.00018471,2]
[350233573,1737723036229,-785.11,0.00018471,2]
[350233574,1737723036239,-500.0,0.00018471,2]
[350233575,1737723036249,-701.31,0.00018471,2]
[350233576,1737723036259,-978.33,0.00018471,2]
[350233577,1737723036270,-500.0,0.00018471,2]
[350233578,1737723036279,-559.71,0.00018471,2]
[350233579,1737723036289,-500.0,0.00018471,2]
[350233580,1737723036300,-728.39,0.00018471,2]
[350233581,1737723036310,-773.41,0.00018471,2]
[350233582,1737723036319,-826.0,0.00018471,2]
[350233583,1737723036329,-690.82,0.00018471,2]
[350233584,1737723036339,-521.06,0.00018471,2]
[350233585,1737723036348,-500.0,0.00018471,2]
[350233586,1737723036358,-1512.39,0.00018471,2]
[350233587,1737723036367,-1639.03,0.00018471,2]
[350233588,1737723036506,-549.06,0.00018471,2]
[350233589,1737723036516,-1940.73,0.00018471,2]
[350233590,1737723036527,-675.72,0.00018471,2]
[350233591,1737723036536,-1022.7,0.00018471,2]
[350233592,1737723036546,-500.0,0.00018471,2]
[350233593,1737723036556,-3011.49,0.00018471,2]
[350233594,1737723036566,-500.0,0.00018471,2]
[350233595,1737723036575,-500.0,0.00018471,2]
[350233596,1737723036586,-862.94,0.00018471,2]
[350233597,1737723036595,-1130.22,0.00018471,2]
[350233598,1737723036604,-1431.6,0.00018471,2]
[350233599,1737723036614,-2349.61,0.00018471,2]
[350233600,1737723036624,-565.09,0.00018471,2]
[350233601,1737723036633,-484.48636493,0.00018471,2]
[350233602,1737723036642,-855.09,0.00018471,2]
[350233603,1737723036652,-1537.55,0.00018471,2]
[350233604,1737723036662,-799.31,0.00018471,2]
[350233605,1737723036672,-2226.9,0.00018471,2]
[350233606,1737723036681,-752.1,0.00018471,2]
[350233607,1737723036691,-674.45,0.00018471,2]
[350233608,1737723036701,-2486.19,0.00018471,2]
[350233609,1737723036710,-5913.15,0.00018471,2]
[350233610,1737723036720,-5059.41,0.00018471,2]
[350233611,1737723036730,-500.0,0.00018471,2]
[350233612,1737723036740,-500.0,0.00018471,2]
[350233613,1737723036750,-2389.59,0.00018471,2]
[350233614,1737723036760,-8944.98,0.00018471,2]
[350233615,1737723036770,-572.52,0.00018471,2]
[350233616,1737723036780,-565.49,0.00018471,2]
[350233617,1737723036789,-3488.4,0.00018471,2]
[350233618,1737723036799,-500.0,0.00018471,2]
[350233619,1737723036809,-1079.19,0.00018471,2]
[350233620,1737723036819,-1620.95,0.00018471,2]
[350233621,1737723036828,-500.0,0.00018471,2]
[350233622,1737723036837,-500.0,0.00018471,2]
[350233623,1737723036847,-500.0,0.00018471,2]
[350233624,1737723036856,-2116.77,0.00018471,2]
[350233625,1737723036866,-689.42,0.00018471,2]
[350233626,1737723036875,-500.0,0.00018471,2]
[350233627,1737723036885,-5237.7,0.00018471,2]
[350233628,1737723036895,-500.0,0.00018471,2]
[350233629,1737723036905,-521.15,0.00018471,2]
[350233630,1737723036915,-909.88,0.00018471,2]
[350233631,1737723036924,-500.0,0.00018471,2]
[350233632,1737723036933,-502.16,0.00018471,2]
[350233633,1737723036943,-1008.55,0.00018471,2]
[350233634,1737723036952,-606.73460551,0.00018471,2]
[350233637,1737723037915,-553.36,0.00018469,2]
[350233638,1737723037924,-267.95939018,0.00018469,2]
[350233646,1737723038742,-232.04060982,0.00018469,2]
[350233647,1737723038752,-135.02539449,0.00018471,2]
[350233648,1737723038761,-3301.06,0.00018471,2]
[350233649,1737723038771,-500.0,0.00018471,2]
[350233650,1737723038780,-1365.71,0.00018471,2]
[350233651,1737723038790,-500.0,0.00018471,2]
[350233652,1737723038800,-1269.36,0.00018471,2]
[350233653,1737723038809,-1552.17,0.00018471,2]
[350233654,1737723038818,-679.35,0.00018471,2]
[350233655,1737723038827,-500.0,0.00018471,2]
[350233656,1737723038836,-500.0,0.00018471,2]
[350233657,1737723038846,-13900.65,0.00018471,2]
[350233658,1737723038855,-1025.92,0.00018471,2]
[350233659,1737723038864,-500.0,0.00018471,2]
[350233660,1737723038874,-614.4,0.00018471,2]
[350233661,1737723038883,-1000.0,0.00018471,2]
[350233662,1737723038893,-623.7,0.00018471,2]
[350233663,1737723038902,-500.0,0.00018471,2]
[350233664,1737723038912,-700.02,0.00018471,2]
[350233665,1737723038921,-670.61,0.00018471,2]
[350233666,1737723038930,-501.72,0.00018471,2]
[350233667,1737723038939,-500.0,0.00018471,2]
[350233668,1737723038949,-500.0,0.00018471,2]
[350233669,1737723038958,-822.01,0.00018471,2]
[350233670,1737723038967,-3116.78,0.00018471,2]
[350233671,1737723038977,-513.88289378,0.00018471,2]
[350233672,1737723038986,-500.0,0.00018471,2]
[350233673,1737723038995,-2512.64,0.00018471,2]
[350233674,1737723039004,-500.0,0.00018472,2]
[350233675,1737723039013,-500.0,0.00018472,2]
[350233676,1737723039023,-500.0,0.00018472,2]
[350233677,1737723039033,-500.0,0.00018472,2]
[350233678,1737723039042,-500.0,0.00018472,2]
[350233679,1737723039052,-1169.5,0.00018472,2]
[350233680,1737723039061,-505.23,0.00018472,2]
[350233681,1737723039071,-1023.98,0.00018472,2]
[350233682,1737723039081,-500.0,0.00018472,2]
[350233683,1737723039090,-828.26,0.00018472,2]
[350233684,1737723039099,-500.0,0.00018472,2]
[350233685,1737723039108,-500.0,0.00018472,2]
[350233686,1737723039118,-500.0,0.00018472,2]
[350233687,1737723039127,-500.0,0.00018472,2]
[350233688,1737723039136,-719.87,0.00018472,2]
[350233689,1737723039145,-500.0,0.00018472,2]
[350233690,1737723039154,-500.0,0.00018472,2]
[350233691,1737723039163,-500.0,0.00018472,2]
[350233692,1737723039173,-500.0,0.00018472,2]
[350233693,1737723039182,-500.0,0.00018472,2]
[350233694,1737723039191,-749.74170933,0.00018473,2]
[350233695,1737723039200,-910.29023297,0.00018474,2]
[350233696,1737723039210,-1903.9651425,0.00018489,2]
[350233697,1737723039220,-474.752914,0.00018489,2]
[350233698,1737723039234,-151.47,0.0001849,2]
[350233699,1737723039243,-151.47,0.0001849,2]
[350233700,1737723039252,-500.0,0.00018495,2]
[350233701,1737723039263,-9037.87290572,0.00018496,2]
[350233702,1737723039272,-633.0,0.00018498,2]
[350233703,1737723039282,-500.0,0.00018498,2]
[350233704,1737723039291,-741.41,0.00018498,2]
[350233705,1737723039302,-370.83281131,0.00018499,2]
[350233706,1737723039311,-2079.27,0.00018499,2]
[350233707,1737723039321,-97314.86989423,0.000185,15]
[350233708,1737723039334,-31628.02354501,0.000185,15]
[350233709,1737723039345,-36754.37698632,0.000185,15]
[350233710,1737723039363,-6733.90573057,0.000185,15]
[350233711,1737723039375,-541.51637491,0.000185,15]
[350233712,1737723039391,-11310.52442872,0.000185,15]
[350233713,1737723039487,-250.64109937,0.000185,15]
[350233714,1737723040096,-626.89,0.00018469,2]
[350233715,1737723040106,-1570.74,0.00018469,2]
[350233716,1737723040116,-500.0,0.00018471,2]
[350233717,1737723040128,-500.0,0.00018471,2]
[350233718,1737723040137,-13817.28616276,0.000185,15]
[350233719,1737723040200,-541.0304438,0.000185,15]
[350233720,1737723040259,-348.82372796,0.000185,15]
[350233721,1737723040379,-1228858.91753064,0.000185,15]
[350233722,1737723040390,-18045.03,0.000185,15]
[350233723,1737723040400,-87221.13750584,0.000185,2]
[350233724,1737723040410,-3157.0,0.000185,15]
[350233725,1737723040420,-3951.802856,0.000185,2]
[350233726,1737723040430,-151.0,0.000185,2]
[350233727,1737723040440,-151.0,0.000185,2]
[350233728,1737723040450,-246.45,0.000185,2]
[350233729,1737723040459,-200.0,0.000185,2]
[350233730,1737723040469,-150.0,0.000185,2]
[350233731,1737723040478,-267.65457225,0.000185,2]
[350233732,1737723040487,-150.0,0.000185,2]
[350233733,1737723040497,-3000.0,0.000185,2]
[350233734,1737723040507,-260.0,0.000185,2]
[350233735,1737723040517,-164.51597564,0.000185,2]
[350233736,1737723040527,-500.0,0.000185,2]
[350233737,1737723040537,-150.7641854,0.000185,2]
[350233738,1737723040546,-150.35237106,0.000185,2]
[350233739,1737723040556,-500.0,0.000185,2]
[350233740,1737723040566,-150.0,0.000185,2]
[350233741,1737723040576,-2496.0,0.000185,2]
[350233742,1737723040586,-516.0,0.000185,2]
[350233743,1737723040596,-170.35628262,0.000185,2]
[350233744,1737723040605,-1698.0469218,0.00018515,2]
[350233745,1737723040614,-3771.5111399,0.00018515,2]
[350233746,1737723040624,-246.10830259,0.00018527,2]
[350233747,1737723040634,-150.0,0.00018527,2]
[350233748,1737723040644,-500.0,0.00018527,2]
[350233749,1737723040654,-500.0,0.00018527,2]
[350233750,1737723040664,-2496.0,0.00018527,2]
[350233751,1737723040674,-516.0,0.00018527,2]
[350233752,1737723040683,-150.0,0.00018555,2]
[350233753,1737723040693,-500.0,0.00018555,2]
[350233754,1737723040702,-500.0,0.00018555,2]
[350233755,1737723040711,-2496.0,0.00018555,2]
[350233756,1737723040720,-516.0,0.00018555,2]
[350233757,1737723040729,-150.37,0.00018568,2]
[350233758,1737723040739,-164.51597562,0.00018576,2]
[350233759,1737723040748,-749.74170933,0.00018577,2]
[350233760,1737723040759,-910.29023297,0.00018577,2]
[350233761,1737723040768,-150.0,0.00018582,2]
[350233762,1737723040777,-500.0,0.00018582,2]
[350233763,1737723040786,-623.90329537,0.00018582,2]
[350233764,1737723040795,-2496.0,0.00018582,2]
[350233765,1737723040804,-516.0,0.00018582,2]
[350233766,1737723040814,-150.91,0.000186,2]
[350233767,1737723040823,-151.8,0.000186,2]
[350233768,1737723040954,-152.19,0.000186,2]
[350233769,1737723040964,-151.0,0.000186,2]
[350233770,1737723040974,-150.0,0.00018603,2]
[350233771,1737723040984,-437.93,0.00018603,2]
[350233772,1737723040994,-150.0,0.00018603,2]
[350233773,1737723041004,-596.2,0.00018603,2]
[350233774,1737723041013,-150.0,0.00018603,2]
[350233775,1737723041023,-437.93,0.00018603,2]
[350233776,1737723041032,-150.0,0.00018603,2]
[350233777,1737723041042,-150.0,0.00018603,2]
[350233778,1737723041052,-150.0,0.00018603,2]
[350233779,1737723041062,-150.0,0.00018603,2]
[350233780,1737723041071,-150.0,0.00018603,2]
[350233781,1737723041081,-437.93,0.00018603,2]
[350233782,1737723041090,-150.0,0.00018603,2]
[350233783,1737723041099,-437.93,0.00018603,2]
[350233784,1737723041110,-150.0,0.00018603,2]
[350233785,1737723041120,-500.0,0.00018606,2]
[350233786,1737723041129,-500.0,0.00018606,2]
[350233787,1737723041139,-500.0,0.00018606,2]
[350233788,1737723041148,-500.0,0.00018606,2]
[350233789,1737723041158,-500.0,0.00018606,2]
[350233790,1737723041167,-500.0,0.00018606,2]
[350233791,1737723041177,-759.02,0.00018606,2]
[350233792,1737723041187,-500.0,0.00018606,2]
[350233793,1737723041196,-3782.49,0.00018606,2]
[350233794,1737723041206,-500.0,0.00018606,2]
[350233795,1737723041216,-500.0,0.00018606,2]
[350233796,1737723041228,-1473.471276,0.00018606,2]
[350233797,1737723041238,-500.0,0.00018606,2]
[350233798,1737723041247,-500.0,0.00018606,2]
[350233799,1737723041257,-568.77092965,0.00018606,2]
[350233800,1737723041267,-500.0,0.00018606,2]
[350233801,1737723041276,-500.0,0.00018606,2]
[350233802,1737723041286,-500.0,0.00018606,2]
[350233803,1737723041297,-1768.05,0.00018606,2]
[350233804,1737723041307,-2714.04,0.00018606,2]
[350233805,1737723041317,-500.0,0.00018606,2]
[350233806,1737723041327,-1054.04527,0.00018606,2]
[350233807,1737723041336,-841.05,0.00018606,2]
[350233808,1737723041346,-500.0,0.00018606,2]
[350233809,1737723041356,-500.0,0.00018606,2]
[350233810,1737723041366,-957.66,0.00018606,2]
[350233811,1737723041376,-500.0,0.00018606,2]
[350233812,1737723041385,-500.0,0.00018606,2]
[350233813,1737723041395,-684.69,0.00018606,2]
[350233814,1737723041403,-1283.14,0.00018606,2]
[350233815,1737723041412,-1052.43,0.00018606,2]
[350233816,1737723041423,-500.0,0.00018606,2]
[350233817,1737723041432,-3081.6,0.00018606,2]
[350233818,1737723041442,-1339.16,0.00018606,2]
[350233819,1737723041451,-500.0,0.00018606,2]
[350233820,1737723041460,-1844.61,0.00018606,2]
[350233821,1737723041469,-199.62671545,0.00018606,2]
[350233822,1737723041479,-873.27,0.00018606,2]
[350233823,1737723041488,-3009.25,0.00018606,2]
[350233824,1737723041499,-500.0,0.00018606,2]
[350233825,1737723041508,-1065.84,0.00018606,2]
[350233826,1737723041518,-1678.13,0.00018606,2]
[350233827,1737723041528,-500.0,0.00018606,2]
[350233828,1737723041538,-176.802069,0.00018606,2]
[350233829,1737723041547,-515.02,0.00018606,2]
[350233830,1737723041557,-500.0,0.00018606,2]
[350233831,1737723041567,-500.0,0.00018606,2]
[350233832,1737723041577,-1510.58,0.00018606,2]
[350233833,1737723041586,-500.0,0.00018606,2]
[350233834,1737723041596,-695.87,0.00018606,2]
[350233835,1737723041606,-2248.41,0.00018606,2]
[350233836,1737723041615,-511.28,0.00018606,2]
[350233837,1737723041625,-500.0,0.00018606,2]
[350233838,1737723041635,-500.0,0.00018606,2]
[350233839,1737723041644,-1265.3,0.00018606,2]
[350233840,1737723041654,-500.0,0.00018606,2]
[350233841,1737723041662,-1326.57,0.00018606,2]
[350233842,1737723041672,-1088.04,0.00018606,2]
[350233843,1737723041682,-4329.02,0.00018606,2]
[350233844,1737723041691,-3185.29,0.00018606,2]
[350233845,1737723041702,-500.0,0.00018606,2]
[350233846,1737723041711,-173.460546,0.00018606,2]
[350233847,1737723041720,-2674.94,0.00018606,2]
[350233848,1737723041730,-1242.37,0.00018606,2]
[350233849,1737723041739,-156.797105,0.00018606,2]
[350233850,1737723041749,-3776.37,0.00018606,2]
[350233851,1737723041758,-500.0,0.00018606,2]
[350233852,1737723041767,-788.74,0.00018606,2]
[350233853,1737723041777,-1199.7,0.00018606,2]
[350233854,1737723041786,-1564.8,0.00018606,2]
[350233855,1737723041796,-1607.77,0.00018606,2]
[350233856,1737723041805,-500.0,0.00018606,2]
[350233857,1737723041815,-500.0,0.00018606,2]
[350233858,1737723041824,-500.0,0.00018606,2]
[350233859,1737723041833,-2766.18,0.00018606,2]
[350233860,1737723041843,-500.0,0.00018606,2]
[350233861,1737723041853,-628.64,0.00018606,2]
[350233862,1737723041862,-5176.74,0.00018606,2]
[350233863,1737723041872,-947.98,0.00018606,2]
[350233864,1737723041881,-500.0,0.00018606,2]
[350233865,1737723041891,-1945.88,0.00018606,2]
[350233866,1737723041900,-500.0,0.00018606,2]
[350233867,1737723041910,-500.0,0.00018606,2]
[350233868,1737723041919,-2081.44,0.00018606,2]
[350233869,1737723041929,-1131.39,0.00018606,2]
[350233870,1737723041938,-500.0,0.00018606,2]
[350233871,1737723041947,-278.94712289,0.00018606,2]
[350233872,1737723041956,-921.68,0.00018606,2]
[350233873,1737723041967,-1652.96,0.00018606,2]
[350233874,1737723041976,-844.93,0.00018606,2]
[350233875,1737723041985,-718.28,0.00018606,2]
[350233876,1737723041995,-4016.52,0.00018606,2]
[350233877,1737723042004,-500.0,0.00018606,2]
[350233878,1737723042013,-1176.47,0.00018606,2]
[350233879,1737723042023,-553.36,0.00018606,2]
[350233880,1737723042032,-500.0,0.00018606,2]
[350233881,1737723042042,-626.89,0.00018606,2]
[350233882,1737723042051,-1570.74,0.00018606,2]
[350233883,1737723042060,-500.0,0.00018607,2]
[350233884,1737723042069,-500.0,0.00018607,2]
[350233885,1737723042079,-500.0,0.00018607,2]
[350233886,1737723042088,-500.0,0.00018607,2]
[350233887,1737723042097,-179.2781272,0.00018607,2]
[350233888,1737723042107,-500.0,0.00018607,2]
[350233889,1737723042116,-500.0,0.00018607,2]
[350233890,1737723042126,-500.0,0.00018607,2]
[350233891,1737723042135,-500.0,0.00018607,2]
[350233892,1737723042144,-500.0,0.00018607,2]
[350233893,1737723042153,-500.0,0.00018607,2]
[350233894,1737723042162,-1131.84,0.00018607,2]
[350233895,1737723042171,-500.0,0.00018607,2]
[350233896,1737723042181,-500.0,0.00018607,2]
[350233897,1737723042190,-689.98,0.00018607,2]
[350233898,1737723042199,-500.0,0.00018607,2]
[350233899,1737723042210,-500.0,0.00018607,2]
[350233900,1737723042220,-500.0,0.00018607,2]
[350233901,1737723042236,-500.0,0.00018607,2]
[350233902,1737723042247,-500.0,0.00018607,2]
[350233903,1737723042257,-500.0,0.00018607,2]
[350233904,1737723042267,-500.0,0.00018607,2]
[350233905,1737723042277,-500.0,0.00018607,2]
[350233906,1737723042286,-500.0,0.00018607,2]
[350233907,1737723042296,-500.0,0.00018607,2]
[350233908,1737723042307,-500.0,0.00018607,2]
[350233909,1737723042316,-500.0,0.00018607,2]
[350233910,1737723042326,-616.67,0.00018607,2]
[350233911,1737723042336,-500.0,0.00018607,2]
[350233912,1737723042345,-500.0,0.00018607,2]
[350233913,1737723042354,-500.0,0.00018607,2]
[350233914,1737723042363,-500.0,0.00018607,2]
[350233915,1737723042373,-514.0506746,0.00018607,2]
[350233916,1737723042383,-500.0,0.00018607,2]
[350233917,1737723042392,-643.5,0.00018607,2]
[350233918,1737723042402,-500.0,0.00018607,2]
[350233919,1737723042411,-500.0,0.00018607,2]
[350233920,1737723042421,-672.57,0.00018607,2]
[350233921,1737723042431,-500.0,0.00018607,2]
[350233922,1737723042440,-590.22,0.00018607,2]
[350233923,1737723042450,-500.0,0.00018607,7]
[350233924,1737723042459,-500.0,0.00018607,2]
[350233925,1737723042468,-1064.78,0.00018607,2]
[350233926,1737723042478,-500.0,0.00018607,2]
[350233927,1737723042487,-500.0,0.00018607,2]
[350233928,1737723042497,-500.0,0.00018607,2]
[350233929,1737723042506,-1276.14,0.00018607,2]
[350233930,1737723042517,-689.28,0.00018607,2]
[350233931,1737723042526,-500.0,0.00018607,2]
[350233932,1737723042535,-500.0,0.00018607,2]
[350233933,1737723042545,-500.0,0.00018607,2]
[350233934,1737723042555,-852.42,0.00018607,2]
[350233935,1737723042565,-500.0,0.00018607,2]
[350233936,1737723042575,-648.09,0.00018607,2]
[350233937,1737723042585,-945.88,0.00018607,2]
[350233938,1737723042594,-644.09,0.00018607,2]
[350233939,1737723042603,-878.43,0.00018607,2]
[350233940,1737723042613,-500.0,0.00018607,2]
[350233941,1737723042622,-598.96,0.00018607,2]
[350233942,1737723042632,-997.58,0.00018607,2]
[350233943,1737723042641,-578.5,0.00018607,2]
[350233944,1737723042651,-500.0,0.00018607,2]
[350233945,1737723042660,-500.0,0.00018607,2]
[350233946,1737723042670,-500.0,0.00018607,2]
[350233947,1737723042679,-500.0,0.00018607,2]
[350233948,1737723042689,-500.0,0.00018607,2]
[350233950,1737723042804,-500.0,0.00018607,2]
[350233951,1737723042814,-500.0,0.00018607,2]
[350233953,1737723042823,-500.0,0.00018607,2]
[350233955,1737723042833,-500.0,0.00018607,2]
[350233957,1737723042842,-853.03,0.00018607,2]
[350233959,1737723042852,-500.0,0.00018607,2]
[350233960,1737723042862,-500.0,0.00018607,2]
[350233961,1737723042871,-500.0,0.00018607,2]
[350233962,1737723042880,-500.0,0.00018607,2]
[350233963,1737723042889,-500.0,0.00018607,2]
[350233964,1737723042898,-500.0,0.00018607,2]
[350233966,1737723042908,-352.76696466,0.00018607,2]
[350233969,1737723042918,-726.2,0.00018607,2]
[350233972,1737723042927,-500.0,0.00018607,2]
[350233974,1737723042937,-944.76,0.00018607,2]
[350233976,1737723042947,-1114.8,0.00018607,2]
[350233978,1737723042957,-184.67178995,0.00018607,2]
[350233980,1737723042967,-385.90982538,0.00018607,2]
[350233984,1737723042977,-500.0,0.00018607,2]
[350233987,1737723042987,-500.0,0.00018607,2]
[350233989,1737723042996,-500.0,0.00018607,2]
[350233992,1737723043007,-500.0,0.00018607,2]
[350233994,1737723043016,-500.0,0.00018607,2]
[350233997,1737723043026,-500.0,0.00018607,2]
[350233999,1737723043037,-500.0,0.00018607,2]
[350234002,1737723043046,-500.0,0.00018607,2]
[350234004,1737723043056,-500.0,0.00018607,2]
[350234008,1737723043065,-500.0,0.00018607,2]
[350234010,1737723043077,-500.0,0.00018607,2]
[350234013,1737723043087,-500.0,0.00018607,2]
[350234016,1737723043096,-1230.54,0.00018607,2]
[350234018,1737723043106,-500.0,0.00018607,2]
[350234020,1737723043115,-500.0,0.00018607,2]
[350234022,1737723043124,-944.05,0.00018607,2]
[350234024,1737723043134,-500.0,0.00018607,2]
[350234026,1737723043144,-500.0,0.00018607,2]
[350234028,1737723043153,-1227.78,0.00018607,2]
[350234030,1737723043163,-500.0,0.00018607,2]
[350234032,1737723043172,-1105.35,0.00018607,2]
[350234034,1737723043182,-603.94984561,0.00018607,2]
[350234035,1737723043191,-500.0,0.00018607,2]
[350234036,1737723043201,-500.0,0.00018607,2]
[350234037,1737723043211,-500.0,0.00018607,2]
[350234038,1737723043220,-500.0,0.00018607,2]